fUSD/lending_fUSD_20240516
["ID","MTS","AMOUNT","RATE_DAILY","PERIOD"]
[327121516,1715842265997,-292.650751,0.00011794,2]
[327121517,1715842266006,-500.0,0.00011794,2]
[327121518,1715842266015,-500.0,0.00011794,2]
[327121519,1715842266025,-500.0,0.00011794,2]
[327121520,1715842266035,-500.0,0.00011794,2]
[327121521,1715842266047,-180.78402136,0.00011794,2]
[327121522,1715842266058,-505.09166345,0.00011794,2]
[327121523,1715842266070,-500.0,0.00011794,2]
[327121524,1715842266081,-500.0,0.00011794,2]
[327121525,1715842266092,-500.0,0.00011794,2]
[327121526,1715842266103,-157.969192,0.00011794,2]
[327121527,1715842266113,-500.0,0.00011794,2]
[327121528,1715842266124,-500.0,0.00011794,2]
[327121529,1715842266135,-569.11,0.00011794,2]
[327121530,1715842266145,-500.0,0.00011794,2]
[327121531,1715842266155,-500.0,0.00011794,2]
[327121532,1715842266166,-1735.53,0.00011794,2]
[327121533,1715842266175,-500.0,0.00011794,2]
[327121534,1715842266184,-500.0,0.00011794,2]
[327121535,1715842266193,-1346.45,0.00011794,2]
[327121536,1715842266203,-157.969192,0.00011794,2]
[327121537,1715842266214,-500.0,0.00011794,2]
[327121538,1715842266223,-500.0,0.00011794,2]
[327121539,1715842266232,-500.0,0.00011794,2]
[327121540,1715842266242,-541.64,0.00011794,2]
[327121541,1715842266251,-500.0,0.00011794,2]
[327121542,1715842266260,-541.64,0.00011794,2]
[327121543,1715842266269,-500.0,0.00011794,2]
[327121544,1715842266278,-500.0,0.00011794,2]
[327121545,1715842266290,-832.43,0.00011794,2]
[327121546,1715842266299,-500.0,0.00011794,2]
[327121547,1715842266309,-500.0,0.00011794,2]
[327121548,1715842266320,-500.0,0.00011794,2]
[327121549,1715842266331,-151.0,0.00011794,2]
[327121550,1715842266342,-500.0,0.00011794,2]
[327121551,1715842266352,-500.0,0.00011794,2]
[327121552,1715842266361,-151.0,0.00011794,2]
[327121553,1715842266371,-483.214084,0.00011794,2]
[327121554,1715842266381,-500.0,0.00011794,2]
[327121555,1715842266391,-500.0,0.00011794,2]
[327121556,1715842266400,-151.0,0.00011794,2]
[327121557,1715842266411,-805.67,0.00011794,2]
[327121558,1715842266420,-500.0,0.00011794,2]
[327121559,1715842266430,-752.7,0.00011794,2]
[327121560,1715842266440,-500.0,0.00011794,2]
[327121561,1715842266509,-752.7,0.00011794,2]
[327121562,1715842266519,-752.7,0.00011794,2]
[327121563,1715842266528,-500.0,0.00011794,2]
[327121564,1715842266539,-500.0,0.00011794,2]
[327121565,1715842266548,-483.214084,0.00011794,2]
[327121566,1715842266559,-500.0,0.00011794,2]
[327121567,1715842266568,-1117.59,0.00011794,2]
[327121568,1715842266577,-500.0,0.00011794,2]
[327121569,1715842266586,-500.0,0.00011794,2]
[327121570,1715842266596,-500.0,0.00011794,2]
[327121571,1715842266605,-2865.79,0.00011794,2]
[327121572,1715842266615,-500.0,0.00011794,2]
[327121573,1715842266625,-500.0,0.00011794,2]
[327121574,1715842266635,-500.0,0.00011794,2]
[327121575,1715842266644,-500.0,0.00011794,2]
[327121576,1715842266654,-757.39,0.00011794,2]
[327121577,1715842266664,-500.0,0.00011794,2]
[327121578,1715842266674,-757.39,0.00011794,2]
[327121579,1715842266683,-757.39,0.00011794,2]
[327121580,1715842266692,-500.0,0.00011794,2]
[327121581,1715842266702,-500.0,0.00011794,2]
[327121582,1715842266711,-500.0,0.00011794,2]
[327121583,1715842266721,-500.0,0.00011794,2]
[327121584,1715842266730,-500.0,0.00011794,2]
[327121585,1715842266739,-500.0,0.00011794,2]
[327121586,1715842266749,-577.34,0.00011794,2]
[327121587,1715842266758,-509.64533714,0.00011794,2]
[327121588,1715842266767,-500.0,0.00011794,2]
[327121589,1715842266776,-500.0,0.00011794,2]
[327121590,1715842266786,-500.0,0.00011794,2]
[327121591,1715842266796,-225.414592,0.00011794,2]
[327121592,1715842266805,-844.89,0.00011794,2]
[327121593,1715842266815,-844.89,0.00011794,2]
[327121594,1715842266825,-844.89,0.00011794,2]
[327121595,1715842266834,-8860.37,0.00011794,2]
[327121596,1715842266844,-500.0,0.00011794,2]
[327121597,1715842266858,-500.0,0.00011794,2]
[327121598,1715842266867,-507.4273593,0.00011794,2]
[327121599,1715842266877,-500.0,0.00011794,2]
[327121600,1715842266886,-860.480533,0.00011794,2]
[327121601,1715842266897,-500.0,0.00011794,2]
[327121602,1715842266906,-805.17715203,0.00011794,2]
[327121603,1715842267438,-38.52284797,0.00011794,2]
[327121604,1715842267448,-260.29548604,0.00011794,2]
[327121605,1715842267460,-641.52451396,0.00011794,2]
[327121606,1715842267470,-358.99141604,0.00011794,2]
[327121607,1715842268134,-500.0,0.00011768,2]
[327121608,1715842268148,-504.77462485,0.00011768,2]
[327121609,1715842268162,-275.383302,0.0001179,2]
[327121610,1715842268174,-38.84207315,0.0001179,2]
[327121611,1715842268191,-236.54122885,0.0001179,2]
[327121612,1715842268206,-500.0,0.00011791,2]
[327121613,1715842268217,-106.85877115,0.00011792,2]
[327121614,1715842268359,-275.383302,0.00011791,2]
[327121615,1715842268371,-416.93122885,0.00011792,2]
[327121616,1715842268383,-523.79,0.00011792,2]
[327121617,1715842268395,-523.79,0.00011792,2]
[327121618,1715842268406,-500.0,0.00011793,2]
[327121619,1715842268419,-484.70858396,0.00011794,2]
[327121620,1715842268431,-225.414592,0.00011794,2]
[327121621,1715842268444,-901.82,0.00011794,2]
[327121622,1715842268455,-500.0,0.00011794,2]
[327121623,1715842268466,-5042.22,0.00011794,2]
[327121624,1715842268478,-500.0,0.00011794,2]
[327121625,1715842268489,-500.0,0.00011794,2]
[327121626,1715842268500,-860.480533,0.00011794,2]
[327121627,1715842268511,-151.0,0.00011794,2]
[327121628,1715842268522,-500.0,0.00011794,2]
[327121629,1715842268533,-500.0,0.00011794,2]
[327121630,1715842268545,-348.044403,0.00011794,2]
[327121631,1715842268556,-721.31,0.00011794,2]
[327121632,1715842268567,-721.31,0.00011794,2]
[327121633,1715842268578,-500.0,0.00011794,2]
[327121634,1715842268589,-721.31,0.00011794,2]
[327121635,1715842268601,-500.0,0.00011794,2]
[327121636,1715842268612,-500.0,0.00011794,2]
[327121637,1715842268623,-500.0,0.00011794,2]
[327121638,1715842268634,-506.01233434,0.00011794,2]
[327121639,1715842268645,-500.0,0.00011794,2]
[327121640,1715842268656,-500.0,0.00011794,2]
[327121641,1715842268668,-348.044403,0.00011794,2]
[327121642,1715842268679,-500.0,0.00011794,2]
[327121643,1715842268691,-500.0,0.00011794,2]
[327121644,1715842268702,-509.53152905,0.00011794,2]
[327121645,1715842268713,-921.22,0.00011794,2]
[327121646,1715842268725,-500.0,0.00011794,2]
[327121647,1715842268736,-498.91555139,0.00011794,2]
[327121648,1715842268747,-500.0,0.00011794,2]
[327121649,1715842268758,-500.0,0.00011794,2]
[327121650,1715842268769,-500.0,0.00011794,2]
[327121651,1715842268780,-1206.97,0.00011794,2]
[327121652,1715842268791,-391.81233672,0.00011794,2]
[327121653,1715842269809,-556.714023,0.00011789,2]
[327121654,1715842269821,-501.00520755,0.0001179,2]
[327121655,1715842269832,-556.714023,0.0001179,2]
[327121656,1715842269843,-523.79,0.00011793,2]
[327121657,1715842269858,-275.383302,0.00011793,2]
[327121658,1715842269869,-275.383302,0.00011793,2]
[327121659,1715842269880,-815.15766328,0.00011794,2]
[327121660,1715842269891,-500.0,0.00011794,2]
[327121661,1715842269901,-1206.97,0.00011794,2]
[327121662,1715842269912,-291.68589593,0.00011794,2]
[327121663,1715842269923,-549.58,0.00011794,2]
[327121664,1715842269934,-1481.26,0.00011794,2]
[327121665,1715842269946,-926.51352157,0.00011794,2]
[327121666,1715842269959,-554.74647843,0.00011794,2]
[327121667,1715842269970,-500.0,0.00011794,2]
[327121668,1715842269981,-961.32,0.00011794,2]
[327121669,1715842269992,-500.0,0.00011794,2]
[327121670,1715842270002,-1146.433638,0.00011794,2]
[327121671,1715842270012,-151.0,0.00011794,2]
[327121672,1715842270023,-893.15,0.00011794,2]
[327121673,1715842270034,-893.15,0.00011794,2]
[327121674,1715842270045,-1146.433638,0.00011794,2]
[327121675,1715842270056,-500.0,0.00011794,2]
[327121676,1715842270066,-6118.79,0.00011794,2]
[327121677,1715842270077,-500.0,0.00011794,2]
[327121678,1715842270087,-6118.79,0.00011794,2]
[327121679,1715842270464,-6118.79,0.00011794,2]
[327121680,1715842270481,-600.46,0.00011794,2]
[327121681,1715842270491,-600.46,0.00011794,2]
[327121682,1715842270500,-151.0,0.00011794,2]
[327121683,1715842270509,-500.0,0.00011794,2]
[327121684,1715842270519,-500.0,0.00011794,2]
[327121685,1715842270528,-500.0,0.00011794,2]
[327121686,1715842270537,-1559.25,0.00011794,2]
[327121687,1715842270546,-873.6,0.00011794,2]
[327121688,1715842270555,-873.6,0.00011794,2]
[327121689,1715842270564,-873.6,0.00011794,2]
[327121690,1715842270573,-509.31370548,0.00011794,2]
[327121691,1715842270583,-819.36,0.00011794,2]
[327121692,1715842270592,-1309.08,0.00011794,2]
[327121693,1715842270602,-583.14110885,0.00011794,2]
[327121694,1715842270611,-1309.08,0.00011794,2]
[327121695,1715842270620,-151.0,0.00011794,2]
[327121696,1715842270630,-557.14,0.00011794,2]
[327121697,1715842270639,-995.62,0.00011794,2]
[327121698,1715842270648,-151.0,0.00011794,2]
[327121699,1715842270658,-557.14,0.00011794,2]
[327121700,1715842270669,-500.0,0.00011794,2]
[327121701,1715842270678,-3205.88,0.00011794,2]
[327121702,1715842270687,-500.0,0.00011794,2]
[327121703,1715842270697,-3205.88,0.00011794,2]
[327121704,1715842270706,-500.0,0.00011794,2]
[327121705,1715842270716,-157.617017,0.00011794,2]
[327121706,1715842270725,-500.0,0.00011794,2]
[327121707,1715842270734,-500.0,0.00011794,2]
[327121708,1715842270744,-508.64881943,0.00011794,2]
[327121709,1715842270754,-508.92065812,0.00011794,2]
[327121710,1715842270764,-500.0,0.00011794,2]
[327121711,1715842270774,-634.62,0.00011794,2]
[327121712,1715842270784,-634.62,0.00011794,2]
[327121713,1715842270794,-155.86972081,0.00011794,2]
[327121714,1715842270804,-2199.6,0.00011794,2]
[327121715,1715842270813,-1731.4,0.00011794,2]
[327121716,1715842270822,-151.0,0.00011794,2]
[327121717,1715842270831,-796.16,0.00011794,2]
[327121718,1715842270841,-151.0,0.00011794,2]
[327121719,1715842270854,-796.16,0.00011794,2]
[327121720,1715842270864,-796.16,0.00011794,2]
[327121721,1715842270873,-500.0,0.00011794,2]
[327121722,1715842270883,-500.0,0.00011794,2]
[327121723,1715842270893,-3060.81,0.00011794,2]
[327121724,1715842270902,-3060.81,0.00011794,2]
[327121725,1715842270912,-500.0,0.00011794,2]
[327121726,1715842270922,-500.0,0.00011794,2]
[327121727,1715842270934,-497.14616706,0.00011794,2]
[327121728,1715842270944,-500.0,0.00011794,2]
[327121729,1715842270954,-500.0,0.00011794,2]
[327121730,1715842270964,-701.57,0.00011794,2]
[327121731,1715842270973,-513.17402366,0.00011794,2]
[327121732,1715842270982,-1852.87,0.00011794,2]
[327121733,1715842270991,-1728.51,0.00011794,2]
[327121734,1715842271000,-1852.87,0.00011794,2]
[327121735,1715842271010,-749.59,0.00011794,2]
[327121736,1715842271019,-1728.51,0.00011794,2]
[327121737,1715842271028,-500.0,0.00011794,2]
[327121738,1715842271037,-500.0,0.00011794,2]
[327121739,1715842271046,-500.0,0.00011794,2]
[327121740,1715842271055,-500.0,0.00011794,2]
[327121741,1715842271065,-301.22505689,0.00011794,2]
[327121742,1715842271074,-500.0,0.00011794,2]
[327121743,1715842271083,-500.0,0.00011794,2]
[327121744,1715842271092,-181.665127,0.00011794,2]
[327121745,1715842271101,-181.665127,0.00011794,2]
[327121746,1715842271111,-151.0,0.00011794,2]
[327121747,1715842271120,-151.0,0.00011794,2]
[327121748,1715842271130,-500.0,0.00011794,2]
[327121749,1715842271139,-532.53034048,0.00011794,2]
[327121750,1715842271149,-500.0,0.00011794,2]
[327121751,1715842271158,-297.394848,0.00011794,2]
[327121752,1715842271171,-500.0,0.00011794,2]
[327121753,1715842271180,-1122.55,0.00011794,2]
[327121754,1715842271189,-1122.55,0.00011794,2]
[327121755,1715842271199,-181.665127,0.00011794,2]
[327121756,1715842271208,-181.665127,0.00011794,2]
[327121757,1715842271219,-1122.55,0.00011794,2]
[327121758,1715842271228,-1323.61,0.00011794,2]
[327121759,1715842271238,-595.54,0.00011794,2]
[327121760,1715842271247,-500.0,0.00011794,2]
[327121761,1715842271257,-500.0,0.00011794,2]
[327121762,1715842271267,-1323.61,0.00011794,2]
[327121763,1715842271277,-500.0,0.00011794,2]
[327121764,1715842271288,-626.45,0.00011794,2]
[327121765,1715842271297,-500.0,0.00011794,2]
[327121766,1715842271306,-500.0,0.00011794,2]
[327121767,1715842271316,-151.0,0.00011794,2]
[327121768,1715842271326,-151.0,0.00011794,2]
[327121769,1715842271335,-595.54,0.00011794,2]
[327121770,1715842271344,-1329.46,0.00011794,2]
[327121771,1715842271353,-567.24793749,0.00011794,2]
[327121772,1715842271362,-229.557741,0.00011794,2]
[327121773,1715842271371,-229.557741,0.00011794,2]
[327121774,1715842271381,-500.0,0.00011794,2]
[327121775,1715842271390,-500.0,0.00011794,2]
[327121776,1715842271400,-500.0,0.00011794,2]
[327121777,1715842271409,-500.0,0.00011794,2]
[327121778,1715842271423,-151.0,0.00011794,2]
[327121779,1715842271433,-151.0,0.00011794,2]
[327121780,1715842271442,-1034.62,0.00011794,2]
[327121781,1715842271451,-229.557741,0.00011794,2]
[327121782,1715842271461,-1034.62,0.00011794,2]
[327121783,1715842271470,-229.557741,0.00011794,2]
[327121784,1715842271479,-500.0,0.00011794,2]
[327121785,1715842271488,-8454.59,0.00011794,2]
[327121786,1715842271498,-8454.59,0.00011794,2]
[327121787,1715842271507,-8454.59,0.00011794,2]
[327121788,1715842271517,-151.0,0.00011794,2]
[327121789,1715842271527,-151.0,0.00011794,2]
[327121790,1715842271536,-500.0,0.00011794,2]
[327121791,1715842271545,-500.0,0.00011794,2]
[327121792,1715842271554,-500.0,0.00011794,2]
[327121793,1715842271564,-500.0,0.00011794,2]
[327121794,1715842271574,-500.0,0.00011794,2]
[327121795,1715842271584,-500.0,0.00011794,2]
[327121796,1715842271592,-805.76,0.00011794,2]
[327121797,1715842271602,-1346.55,0.00011794,2]
[327121798,1715842271611,-795.9,0.00011794,2]
[327121799,1715842271621,-151.0,0.00011794,2]
[327121800,1715842271630,-500.0,0.00011794,2]
[327121801,1715842271640,-795.9,0.00011794,2]
[327121802,1715842271649,-151.0,0.00011794,2]
[327121803,1715842271658,-795.9,0.00011794,2]
[327121804,1715842271670,-500.0,0.00011794,2]
[327121805,1715842271679,-591.07,0.00011794,2]
[327121806,1715842271688,-591.07,0.00011794,2]
[327121807,1715842271697,-500.0,0.00011794,2]
[327121808,1715842271705,-591.07,0.00011794,2]
[327121809,1715842271715,-504.90209377,0.00011794,2]
[327121810,1715842271724,-151.0,0.00011794,2]
[327121811,1715842271734,-500.0,0.00011794,2]
[327121812,1715842271743,-151.0,0.00011794,2]
[327121813,1715842271753,-500.0,0.00011794,2]
[327121814,1715842271762,-151.0,0.00011794,2]
[327121815,1715842271771,-650.26,0.00011794,2]
[327121816,1715842271781,-650.26,0.00011794,2]
[327121817,1715842271790,-151.0,0.00011794,2]
[327121818,1715842271799,-607.95,0.00011794,2]
[327121819,1715842271809,-607.95,0.00011794,2]
[327121820,1715842271821,-500.0,0.00011794,2]
[327121821,1715842271829,-500.0,0.00011794,2]
[327121822,1715842271839,-500.0,0.00011794,2]
[327121823,1715842271848,-607.95,0.00011794,2]
[327121824,1715842271859,-500.0,0.00011794,2]
[327121825,1715842271872,-500.0,0.00011794,2]
[327121826,1715842271881,-500.0,0.00011794,2]
[327121827,1715842271890,-651.55,0.00011794,2]
[327121828,1715842271899,-500.0,0.00011794,2]
[327121829,1715842271910,-651.55,0.00011794,2]
[327121830,1715842271923,-500.0,0.00011794,2]
[327121831,1715842271932,-651.55,0.00011794,2]
[327121832,1715842271942,-500.0,0.00011794,2]
[327121833,1715842271952,-500.0,0.00011794,2]
[327121834,1715842271961,-500.0,0.00011794,2]
[327121835,1715842271970,-500.0,0.00011794,2]
[327121836,1715842271979,-275.383302,0.00011794,2]
[327121837,1715842271988,-275.383302,0.00011794,2]
[327121838,1715842271997,-275.383302,0.00011794,2]
[327121839,1715842272008,-275.383302,0.00011794,2]
[327121840,1715842272016,-374020.86391884,0.00011795,2]
[327121841,1715842272027,-298.78407833,0.00011795,2]
[327121842,1715842272036,-553.26398436,0.00011795,2]
[327121843,1715842272045,-2000.0,0.00011795,2]
[327121844,1715842272055,-200.0,0.00011795,2]
[327121845,1715842272064,-2000.0,0.00011795,2]
[327121846,1715842272075,-200.0,0.00011795,2]
[327121847,1715842272084,-151.0,0.00011795,2]
[327121848,1715842272097,-151.0,0.00011795,2]
[327121849,1715842272106,-151.0,0.00011795,2]
[327121850,1715842272116,-151.0,0.00011795,2]
[327121851,1715842272127,-665.18,0.00011795,2]
[327121852,1715842272136,-665.18,0.00011795,2]
[327121853,1715842272146,-665.18,0.00011795,2]
[327121854,1715842272155,-500.0,0.00011795,2]
[327121855,1715842272166,-500.0,0.00011795,2]
[327121856,1715842272177,-500.0,0.00011795,2]
[327121857,1715842272187,-500.0,0.00011795,2]
[327121858,1715842272197,-500.0,0.00011795,2]
[327121859,1715842272207,-500.0,0.00011795,2]
[327121860,1715842272216,-627.34,0.00011795,2]
[327121861,1715842272227,-627.34,0.00011795,2]
[327121862,1715842272236,-627.34,0.00011795,2]
[327121863,1715842272245,-151.0,0.00011795,2]
[327121864,1715842272254,-500.0,0.00011795,2]
[327121865,1715842272264,-500.0,0.00011795,2]
[327121866,1715842272274,-500.0,0.00011795,2]
[327121867,1715842272284,-151.0,0.00011795,2]
[327121868,1715842272294,-275.256434,0.00011795,2]
[327121869,1715842272304,-275.256434,0.00011795,2]
[327121870,1715842272315,-500.0,0.00011795,2]
[327121871,1715842272324,-714.26,0.00011795,2]
[327121872,1715842272333,-500.0,0.00011795,2]
[327121873,1715842272343,-714.26,0.00011795,2]
[327121874,1715842272352,-500.0,0.00011795,2]
[327121875,1715842272362,-714.26,0.00011795,2]
[327121876,1715842272373,-858.52,0.00011795,2]
[327121877,1715842272382,-858.52,0.00011795,2]
[327121878,1715842272392,-858.52,0.00011795,2]
[327121879,1715842272401,-500.0,0.00011795,2]
[327121880,1715842272411,-534.27623865,0.00011795,2]
[327121881,1715842272421,-825.4,0.00011795,2]
[327121882,1715842272430,-825.4,0.00011795,2]
[327121883,1715842272439,-825.4,0.00011795,2]
[327121884,1715842272449,-647.99,0.00011795,2]
[327121885,1715842272458,-647.99,0.00011795,2]
[327121886,1715842272469,-647.99,0.00011795,2]
[327121887,1715842272478,-896.52,0.00011795,2]
[327121888,1715842272488,-896.52,0.00011795,2]
[327121889,1715842272497,-896.52,0.00011795,2]
[327121890,1715842272507,-151.0,0.00011795,2]
[327121891,1715842272516,-151.0,0.00011795,2]
[327121892,1715842272525,-812.03,0.00011795,2]
[327121893,1715842272534,-812.03,0.00011795,2]
[327121894,1715842272543,-812.03,0.00011795,2]
[327121895,1715842272552,-500.0,0.00011795,2]
[327121896,1715842272561,-500.0,0.00011795,2]
[327121897,1715842272570,-500.0,0.00011795,2]
[327121898,1715842272580,-601.97,0.00011795,2]
[327121899,1715842272589,-601.97,0.00011795,2]
[327121900,1715842272598,-601.97,0.00011795,2]
[327121901,1715842272607,-727.45,0.00011795,2]
[327121902,1715842272616,-727.45,0.00011795,2]
[327121903,1715842272626,-727.45,0.00011795,2]
[327121904,1715842272635,-151.0,0.00011795,2]
[327121905,1715842272644,-151.0,0.00011795,2]
[327121906,1715842272654,-500.0,0.00011795,2]
[327121907,1715842272663,-500.0,0.00011795,2]
[327121908,1715842272672,-500.0,0.00011795,2]
[327121909,1715842272682,-151.0,0.00011795,2]
[327121910,1715842272691,-151.0,0.00011795,2]
[327121911,1715842272700,-1179.03,0.00011795,2]
[327121912,1715842272709,-1179.03,0.00011795,2]
[327121913,1715842272719,-1179.03,0.00011795,2]
[327121914,1715842272728,-151.0,0.00011795,2]
[327121915,1715842272737,-500.0,0.00011795,2]
[327121916,1715842272746,-500.0,0.00011795,2]
[327121917,1715842272756,-500.0,0.00011795,2]
[327121918,1715842272765,-500.0,0.00011795,2]
[327121919,1715842272774,-500.0,0.00011795,2]
[327121920,1715842272784,-500.0,0.00011795,2]
[327121921,1715842272793,-500.0,0.00011795,2]
[327121922,1715842272802,-500.0,0.00011795,2]
[327121923,1715842272812,-500.0,0.00011795,2]
[327121924,1715842272823,-689.69,0.00011795,2]
[327121925,1715842272832,-689.69,0.00011795,2]
[327121926,1715842272844,-689.69,0.00011795,2]
[327121927,1715842272857,-1523.68,0.00011795,2]
[327121928,1715842272875,-1523.68,0.00011795,2]
[327121929,1715842272884,-1523.68,0.00011795,2]
[327121930,1715842272894,-257.99647,0.00011795,2]
[327121931,1715842272904,-500.0,0.00011795,2]
[327121932,1715842272914,-500.0,0.00011795,2]
[327121933,1715842272924,-500.0,0.00011795,2]
[327121934,1715842272933,-500.0,0.00011795,2]
[327121935,1715842272943,-500.0,0.00011795,2]
[327121936,1715842272952,-500.0,0.00011795,2]
[327121937,1715842272961,-151.0,0.00011795,2]
[327121938,1715842272971,-151.0,0.00011795,2]
[327121939,1715842272982,-151.0,0.00011795,2]
[327121940,1715842272993,-500.0,0.00011795,2]
[327121941,1715842273003,-500.0,0.00011795,2]
[327121942,1715842273013,-500.0,0.00011795,2]
[327121943,1715842273025,-541.71,0.00011795,2]
[327121944,1715842273036,-541.71,0.00011795,2]
[327121945,1715842273046,-541.71,0.00011795,2]
[327121946,1715842273055,-151.0,0.00011795,2]
[327121947,1715842273065,-151.0,0.00011795,2]
[327121948,1715842273076,-747.18,0.00011795,2]
[327121949,1715842273086,-747.18,0.00011795,2]
[327121950,1715842273095,-747.18,0.00011795,2]
[327121951,1715842273104,-500.0,0.00011795,2]
[327121952,1715842273113,-500.0,0.00011795,2]
[327121953,1715842273122,-500.0,0.00011795,2]
[327121954,1715842273131,-286.078212,0.00011795,2]
[327121955,1715842273140,-286.078212,0.00011795,2]
[327121956,1715842273150,-151.0,0.00011795,2]
[327121957,1715842273160,-151.0,0.00011795,2]
[327121958,1715842273170,-286.078212,0.00011795,2]
[327121959,1715842273179,-286.078212,0.00011795,2]
[327121960,1715842273188,-500.0,0.00011795,2]
[327121961,1715842273198,-500.0,0.00011795,2]
[327121962,1715842273207,-541.35841057,0.00011795,2]
[327121963,1715842273216,-500.0,0.00011795,2]
[327121964,1715842273226,-500.0,0.00011795,2]
[327121965,1715842273235,-500.0,0.00011795,2]
[327121966,1715842273244,-500.0,0.00011795,2]
[327121967,1715842273253,-500.0,0.00011795,2]
[327121968,1715842273263,-500.0,0.00011795,2]
[327121969,1715842273272,-389.103363,0.00011795,2]
[327121970,1715842273281,-389.103363,0.00011795,2]
[327121971,1715842273291,-757.6,0.00011795,2]
[327121972,1715842273300,-757.6,0.00011795,2]
[327121973,1715842273310,-757.6,0.00011795,2]
[327121974,1715842273320,-389.103363,0.00011795,2]
[327121975,1715842273330,-389.103363,0.00011795,2]
[327121976,1715842273339,-500.0,0.00011795,2]
[327121977,1715842273349,-500.0,0.00011795,2]
[327121978,1715842273359,-500.0,0.00011795,2]
[327121979,1715842273368,-151.0,0.00011795,2]
[327121980,1715842273377,-571.25,0.00011795,2]
[327121981,1715842273387,-151.0,0.00011795,2]
[327121982,1715842273397,-571.25,0.00011795,2]
[327121983,1715842273407,-571.25,0.00011795,2]
[327121984,1715842273417,-151.0,0.00011795,2]
[327121985,1715842273427,-151.0,0.00011795,2]
[327121986,1715842273436,-500.0,0.00011795,2]
[327121987,1715842273446,-500.0,0.00011795,2]
[327121988,1715842273455,-500.0,0.00011795,2]
[327121989,1715842273465,-151.0,0.00011795,2]
[327121990,1715842273475,-151.989428,0.00011795,2]
[327121991,1715842273485,-500.0,0.00011795,2]
[327121992,1715842273495,-167.04403782,0.00011795,2]
[327121993,1715842273504,-510.01,0.00011795,2]
[327121994,1715842273514,-510.01,0.00011795,2]
[327121995,1715842273523,-510.01,0.00011795,2]
[327121996,1715842273533,-500.0,0.00011795,2]
[327121997,1715842273542,-500.0,0.00011795,2]
[327121998,1715842273551,-500.0,0.00011795,2]
[327121999,1715842273561,-151.0,0.00011795,2]
[327122000,1715842273571,-151.0,0.00011795,2]
[327122001,1715842273580,-500.0,0.00011795,2]
[327122002,1715842273589,-500.0,0.00011795,2]
[327122003,1715842273599,-633.37884727,0.00011795,2]
[327122004,1715842273609,-151.0,0.00011795,2]
[327122005,1715842273618,-151.0,0.00011795,2]
[327122006,1715842273627,-283.959126,0.00011795,2]
[327122007,1715842273637,-475.42331678,0.00011795,2]
[327122008,1715842273646,-500.0,0.00011795,2]
[327122009,1715842273655,-178.41857379,0.00011795,2]
[327122010,1715842273665,-500.0,0.00011795,2]
[327122011,1715842273674,-258.07972835,0.00011795,2]
[327122012,1715842273683,-500.0,0.00011795,2]
[327122013,1715842273693,-500.0,0.00011795,2]
[327122014,1715842273702,-500.0,0.00011795,2]
[327122015,1715842273712,-500.0,0.00011795,2]